fUSD/lending_fUSD_20241208
["ID","MTS","AMOUNT","RATE_DAILY","PERIOD"]
[344630270,1733641848906,-1036.5,0.00022999,2]
[344630271,1733641848915,-1822.86,0.00022999,2]
[344630272,1733641848925,-1036.5,0.00022999,2]
[344630273,1733641848934,-1822.86,0.00022999,2]
[344630274,1733641848943,-1036.5,0.00022999,2]
[344630275,1733641848953,-1822.92790447,0.00022999,2]
[344630276,1733641848963,-1036.5,0.00022999,2]
[344630277,1733641848973,-1036.5,0.00022999,2]
[344630278,1733641848983,-1036.5,0.00022999,2]
[344630279,1733641848993,-1036.5,0.00022999,2]
[344630280,1733641849002,-1036.5,0.00022999,2]
[344630281,1733641849011,-1036.5,0.00022999,2]
[344630282,1733641849023,-1036.5,0.00022999,2]
[344630283,1733641849032,-1036.68,0.00022999,2]
[344630284,1733641849042,-635.94,0.00022999,2]
[344630285,1733641849052,-635.94,0.00022999,2]
[344630286,1733641849062,-635.94,0.00022999,2]
[344630287,1733641849071,-635.94,0.00022999,2]
[344630288,1733641849081,-635.94,0.00022999,2]
[344630289,1733641849090,-635.94,0.00022999,2]
[344630290,1733641849100,-635.94,0.00022999,2]
[344630291,1733641849110,-635.94,0.00022999,2]
[344630292,1733641849119,-635.94,0.00022999,2]
[344630293,1733641849129,-635.94,0.00022999,2]
[344630294,1733641849139,-635.94,0.00022999,2]
[344630295,1733641849148,-635.94,0.00022999,2]
[344630296,1733641849158,-635.94,0.00022999,2]
[344630297,1733641849168,-635.94,0.00022999,2]
[344630298,1733641849178,-635.94,0.00022999,2]
[344630299,1733641849188,-635.94,0.00022999,2]
[344630300,1733641849199,-635.94,0.00022999,2]
[344630301,1733641849209,-635.94,0.00022999,2]
[344630302,1733641849219,-635.97,0.00022999,2]
[344630303,1733641849230,-641.61,0.00022999,2]
[344630304,1733641849240,-641.61,0.00022999,2]
[344630305,1733641849250,-641.61,0.00022999,2]
[344630306,1733641849259,-641.61,0.00022999,2]
[344630307,1733641849270,-641.61,0.00022999,2]
[344630308,1733641849280,-641.61,0.00022999,2]
[344630309,1733641849291,-641.61,0.00022999,2]
[344630310,1733641849300,-641.61,0.00022999,2]
[344630311,1733641849310,-641.61,0.00022999,2]
[344630312,1733641849320,-641.61,0.00022999,2]
[344630313,1733641849330,-641.61,0.00022999,2]
[344630314,1733641849340,-641.61,0.00022999,2]
[344630315,1733641849350,-641.61,0.00022999,2]
[344630316,1733641849360,-641.61,0.00022999,2]
[344630317,1733641849370,-641.61,0.00022999,2]
[344630318,1733641849380,-641.61,0.00022999,2]
[344630319,1733641849390,-641.61,0.00022999,2]
[344630320,1733641849400,-641.61,0.00022999,2]
[344630321,1733641849410,-641.61,0.00022999,2]
[344630322,1733641849420,-641.678587,0.00022999,2]
[344630323,1733641849430,-1292.64,0.00022999,2]
[344630324,1733641849440,-1292.64,0.00022999,2]
[344630325,1733641849450,-1292.64,0.00022999,2]
[344630326,1733641849460,-1292.64,0.00022999,2]
[344630327,1733641849469,-1292.64,0.00022999,2]
[344630328,1733641849479,-1292.64,0.00022999,2]
[344630329,1733641849489,-1292.64,0.00022999,2]
[344630330,1733641849500,-1292.64,0.00022999,2]
[344630331,1733641849510,-1292.64,0.00022999,2]
[344630332,1733641849520,-1292.64,0.00022999,2]
[344630333,1733641849530,-1292.64,0.00022999,2]
[344630334,1733641849540,-1292.64,0.00022999,2]
[344630335,1733641849550,-1292.64,0.00022999,2]
[344630336,1733641849560,-1292.64,0.00022999,2]
[344630337,1733641849570,-1292.64,0.00022999,2]
[344630338,1733641849579,-1292.64,0.00022999,2]
[344630339,1733641849589,-1292.64,0.00022999,2]
[344630340,1733641849600,-1292.64,0.00022999,2]
[344630341,1733641849610,-1292.74,0.00022999,2]
[344630342,1733641849621,-2702.1048527,0.00023,2]
[344630343,1733641849631,-150.0,0.00023,2]
[344630344,1733641849640,-37266961.38391476,0.00023,3]
[344630345,1733641849883,-4468.28556237,0.00023,3]
[344630346,1733641849901,-573.45,0.00023,3]
[344630347,1733641849913,-2997.05513562,0.00023,3]
[344630348,1733641849925,-392.80102738,0.00023,3]
[344630349,1733641850051,-378.17930205,0.00023,3]
[344630350,1733641850064,-316.44275675,0.00023,3]
[344630351,1733641850076,-515.25927088,0.00023,3]
[344630352,1733641850087,-963.19752,0.00023,3]
[344630353,1733641850105,-4381.25527597,0.00023,3]
[344630354,1733641850119,-1842.16422638,0.00023,3]
[344630355,1733641850143,-1848.3052366,0.00023,3]
[344630356,1733641850156,-334.90000007,0.00023,3]
[344630357,1733641850169,-23211.0,0.00023,3]
[344630358,1733641850227,-354.20649141,0.00023,2]
[344630359,1733641850239,-214.79350859,0.00023,2]
[344630360,1733641850249,-4619.00620459,0.00023,3]
[344630361,1733641866783,200.0,0.00014995,2]
[344630363,1733641867180,200.0,0.00014979,2]
[344630364,1733641867474,200.0,0.00014957,2]
[344630365,1733641867775,200.0,0.00014959,2]
[344630366,1733641868087,200.0,0.00014985,2]
[344630367,1733641868396,200.0,0.00014964,2]
[344630372,1733641928262,200.0,0.00014958,2]
[344630373,1733641928574,200.0,0.00014976,2]
[344630374,1733641928874,200.0,0.0001499,2]
[344630375,1733641929156,200.0,0.00014958,2]
[344630376,1733641929450,200.0,0.00014968,2]
[344630377,1733641929782,200.0,0.00014984,2]
[344630378,1733641989072,200.0,0.00014989,2]
[344630379,1733641989408,200.0,0.00014999,2]
[344630380,1733641989728,200.0,0.00014984,2]
[344630381,1733641990010,200.0,0.00014964,2]
[344630456,1733642299800,450.0,0.00013,2]
[344630458,1733642301009,500.0,0.00015,2]
[344630537,1733642881328,3547.84298145,0.0001,2]
[344630554,1733642916614,2606.45936273,0.0001,2]
[344630559,1733642922722,3000.2696813,0.0001,2]
[344630627,1733643031973,-499.52,0.00017,2]
[344630628,1733643032098,-50.48,0.00017,2]
[344630629,1733643032109,-330.23018751,0.00017,10]
[344630630,1733643032118,-807.28981249,0.000195,2]
[344630640,1733643037847,-1866.88,0.000195,2]
[344630641,1733643037859,-7671.498657,0.000195,2]
[344630642,1733643037871,-2158.34162839,0.000195,2]
[344630643,1733643037880,-1066.44523025,0.00019719,2]
[344630644,1733643037895,-263.49543996,0.00019719,2]
[344630645,1733643037907,-501.41932979,0.00019719,2]
[344630646,1733643037916,-150.0,0.000204,2]
[344630647,1733643037926,-3000.0,0.00021,2]
[344630648,1733643037935,-419.57,0.00021612,2]
[344630649,1733643037944,-800.0,0.00021612,2]
[344630650,1733643037953,-127.52812021,0.00021612,2]
[344630655,1733643039626,-295.50187979,0.00021612,2]
[344630656,1733643039635,-649.03,0.00021612,2]
[344630657,1733643039644,-250.0,0.00021638,2]
[344630658,1733643039654,-150.0,0.00021665,2]
[344630659,1733643039663,-169.5,0.00021668,2]
[344630660,1733643039673,-446.57,0.00021684,2]
[344630661,1733643039682,-902.47778235,0.00021685,2]
[344630662,1733643039912,-22997.52221765,0.00021685,2]
[344630663,1733643039922,-553.12,0.0002169,2]
[344630664,1733643039932,-250.0,0.00021693,2]
[344630665,1733643039941,-2000.0,0.00021718,2]
[344630666,1733643039950,-353.25,0.00021829,2]
[344630667,1733643039960,-505.41,0.00021843,30]
[344630668,1733643039969,-150.0,0.00021846,2]
[344630669,1733643039978,-3348.26,0.00021847,2]
[344630670,1733643039988,-157.668,0.0002185,2]
[344630671,1733643039998,-200.0,0.000219,2]
[344630672,1733643040007,-2050.18911714,0.00021918,2]
[344630673,1733643040018,-14.60088286,0.00021918,2]
[344630674,1733643040028,-1039.6030017,0.00021983,2]
[344630675,1733643040039,-791.7569983,0.00021983,2]
[344630676,1733643040049,-500.0,0.00022055,2]
[344630677,1733643040058,-1715.0,0.000222,3]
[344630678,1733643040070,-200.0,0.00022454,2]
[344630679,1733643040079,-228.0,0.00022456,2]
[344630680,1733643040089,-82.17420114,0.00022492,2]
[344630681,1733643040101,-470.94579886,0.00022492,2]
[344630682,1733643040110,-228.0,0.00022506,2]
[344630683,1733643040120,-1000.0,0.00022518,2]
[344630684,1733643040130,-228.0,0.00022559,2]
[344630685,1733643040139,-228.0,0.00022602,2]
[344630686,1733643040148,-228.0,0.00022649,2]
[344630687,1733643040158,-150.0,0.00022706,2]
[344630688,1733643040168,-1801.401,0.00022708,2]
[344630689,1733643040178,-228.0,0.00022708,2]
[344630690,1733643040188,-108.79320114,0.00022712,2]
[344630697,1733643042774,-41.20679886,0.00022712,2]
[344630698,1733643042783,-150.0,0.00022713,2]
[344630699,1733643042792,-150.0,0.00022715,2]
[344630700,1733643042801,-150.0,0.00022716,2]
[344630701,1733643042811,-150.0,0.00022723,2]
[344630702,1733643042826,-228.0,0.00022728,2]
[344630703,1733643042835,-150.0,0.0002273,2]
[344630704,1733643042845,-150.0,0.00022733,2]
[344630705,1733643042854,-150.0,0.00022735,2]
[344630706,1733643042863,-150.0,0.00022735,2]
[344630707,1733643042873,-150.0,0.00022737,2]
[344630708,1733643042882,-48.81617222,0.00022738,2]
[344630709,1733643042893,-101.18382778,0.00022738,2]
[344630710,1733643042903,-150.0,0.0002274,2]
[344630711,1733643042911,-150.0,0.00022741,2]
[344630712,1733643042922,-150.0,0.00022749,2]
[344630713,1733643042932,-150.0,0.0002275,2]
[344630714,1733643042941,-228.0,0.00022751,2]
[344630715,1733643042949,-63.94353263,0.00022751,2]
[344630716,1733643042961,-164.05646737,0.00022751,2]
[344630717,1733643042970,-150.0,0.00022752,2]
[344630718,1733643042980,-150.0,0.00022756,2]
[344630719,1733643042989,-150.0,0.00022759,2]
[344630720,1733643042999,-228.0,0.00022761,2]
[344630721,1733643043009,-150.0,0.00022767,2]
[344630722,1733643043019,-150.0,0.00022769,2]
[344630723,1733643043028,-3000.0,0.0002277,2]
[344630724,1733643043037,-150.0,0.00022771,2]
[344630725,1733643043046,-228.0,0.00022771,2]
[344630726,1733643043056,-228.0,0.00022771,2]
[344630727,1733643043067,-150.0,0.00022772,2]
[344630728,1733643043077,-228.0,0.00022781,2]
[344630729,1733643043086,-228.0,0.00022781,2]
[344630730,1733643043094,-150.0,0.00022782,2]
[344630731,1733643043103,-150.0,0.00022782,2]
[344630732,1733643043112,-150.0,0.00022784,2]
[344630733,1733643043122,-150.0,0.00022784,2]
[344630734,1733643043131,-150.0,0.00022785,2]
[344630735,1733643043140,-1029.89183162,0.00022786,2]
[344630736,1733643043149,-150.0,0.00022786,2]
[344630737,1733643043158,-228.0,0.00022788,2]
[344630738,1733643043166,-150.0,0.00022789,2]
[344630739,1733643043175,-228.0,0.00022789,2]
[344630740,1733643043184,-150.0,0.00022796,2]
[344630741,1733643043193,-150.0,0.00022796,2]
[344630742,1733643043202,-150.0,0.00022796,2]
[344630743,1733643043211,-150.0,0.00022797,2]
[344630744,1733643043220,-228.0,0.00022797,2]
[344630745,1733643043228,-512.44252307,0.000228,14]
[344630746,1733643043237,-11368.14403251,0.000228,3]
[344630747,1733643043246,-150.0,0.00022803,2]
[344630748,1733643043255,-150.0,0.00022804,2]
[344630749,1733643043264,-150.0,0.00022805,2]
[344630750,1733643043273,-300.0,0.00022806,2]
[344630751,1733643043282,-150.0,0.00022806,2]
[344630752,1733643043292,-228.0,0.00022807,2]
[344630753,1733643043301,-228.0,0.0002281,2]
[344630754,1733643043310,-150.0,0.00022812,2]
[344630755,1733643043320,-228.0,0.00022814,2]
[344630756,1733643043329,-500.0,0.00022816,2]
[344630757,1733643043337,-228.0,0.00022822,2]
[344630758,1733643043346,-150.0,0.00022827,2]
[344630759,1733643043355,-150.0,0.0002283,2]
[344630760,1733643043365,-228.0,0.00022831,2]
[344630761,1733643043374,-150.0,0.00022833,2]
[344630762,1733643043383,-150.0,0.00022835,2]
[344630763,1733643043392,-228.0,0.00022836,2]
[344630764,1733643043401,-150.0,0.00022837,2]
[344630765,1733643043410,-150.0,0.00022838,2]
[344630766,1733643043419,-106.71514543,0.00022839,2]
[344630768,1733643043435,-7177.59976214,0.00022839,2]
[344630769,1733643043444,-25.66029056,0.00022839,2]
[344630770,1733643043455,-124.33970944,0.00022839,2]
[344630771,1733643043465,-228.0,0.00022839,2]
[344630772,1733643043478,-150.0,0.0002284,2]
[344630773,1733643043487,-150.0,0.0002284,2]
[344630774,1733643043497,-150.0,0.0002284,2]
[344630775,1733643043508,-150.0,0.00022843,2]
[344630776,1733643043518,-228.0,0.00022844,2]
[344630777,1733643043528,-228.0,0.00022847,2]
[344630778,1733643043537,-150.0,0.00022847,2]
[344630779,1733643043548,-150.0,0.00022848,2]
[344630780,1733643043558,-150.0,0.00022848,2]
[344630781,1733643043567,-150.0,0.00022853,2]
[344630782,1733643043577,-150.0,0.00022856,2]
[344630783,1733643043586,-150.0,0.00022859,2]
[344630784,1733643043595,-205.97458981,0.00022859,2]
[344630785,1733643043604,-150.0,0.0002286,2]
[344630786,1733643043613,-150.0,0.00022861,2]
[344630787,1733643043623,-115.68570075,0.00022865,2]
[344630788,1733643043636,-34.31429925,0.00022865,2]
[344630789,1733643043646,-228.0,0.00022865,2]
[344630790,1733643043655,-150.0,0.00022866,2]
[344630791,1733643043665,-228.0,0.0002287,2]
[344630792,1733643043674,-150.0,0.0002287,2]
[344630793,1733643043683,-150.0,0.00022871,2]
[344630794,1733643043692,-228.0,0.00022873,2]
[344630795,1733643043702,-150.0,0.00022875,2]
[344630796,1733643043711,-150.0,0.00022875,2]
[344630797,1733643043720,-150.0,0.00022876,2]
[344630798,1733643043730,-800.0,0.00022877,2]
[344630799,1733643043739,-150.0,0.00022878,2]
[344630800,1733643043748,-228.0,0.00022879,2]
[344630801,1733643043757,-150.0,0.00022881,2]
[344630802,1733643043767,-150.0,0.00022883,2]
[344630803,1733643043776,-150.0,0.0002289,2]
[344630804,1733643043786,-150.0,0.00022891,2]
[344630805,1733643043796,-228.0,0.00022894,2]
[344630806,1733643043805,-228.0,0.00022894,2]
[344630807,1733643043814,-228.0,0.00022894,2]
[344630808,1733643043824,-228.0,0.00022894,2]
[344630809,1733643043834,-228.0,0.00022894,2]
[344630810,1733643043843,-228.0,0.00022895,2]
[344630811,1733643043853,-228.0,0.00022895,2]
[344630812,1733643043862,-228.0,0.00022895,2]
[344630813,1733643043872,-228.0,0.00022895,2]
[344630814,1733643043882,-228.0,0.00022895,2]
[344630815,1733643043891,-228.0,0.00022895,2]
[344630816,1733643043901,-228.0,0.00022895,2]
[344630817,1733643043910,-150.0,0.00022898,2]
[344630818,1733643043919,-150.0,0.00022898,2]
[344630819,1733643043928,-150.0,0.00022898,3]
[344630820,1733643043938,-776.18570075,0.000229,2]
[344630821,1733643043950,-668.22980955,0.000229,2]
[344630822,1733643043990,-1078.88186558,0.000229,2]
[344630823,1733643044001,-2476.70262412,0.000229,2]
[344630824,1733643044011,-155.9511498,0.000229,2]
[344630825,1733643044020,-150.0,0.00022902,2]
[344630826,1733643044029,-228.0,0.00022902,2]
[344630827,1733643044039,-228.0,0.00022902,2]
[344630828,1733643044049,-150.0,0.00022908,2]
[344630829,1733643044059,-150.0,0.00022913,2]
[344630830,1733643044069,-150.0,0.00022913,2]
[344630831,1733643044079,-150.0,0.00022917,2]
[344630832,1733643044088,-150.0,0.00022917,2]
[344630833,1733643044097,-150.0,0.00022918,2]
[344630834,1733643044107,-150.0,0.0002292,2]
[344630835,1733643044117,-150.0,0.00022922,2]
[344630836,1733643044127,-311.02613995,0.00022926,2]
[344630837,1733643044136,-7130.52658653,0.0002293,2]
[344630838,1733643044147,-2869.47341347,0.0002293,2]
[344630839,1733643044157,-150.0,0.00022932,2]
[344630840,1733643044166,-1184.95982749,0.00022938,2]
[344630841,1733643044175,-150.0,0.0002294,2]
[344630842,1733643044185,-150.0,0.00022941,2]
[344630843,1733643044194,-300.0,0.00022941,2]
[344630844,1733643044204,-150.0,0.00022946,2]
[344630845,1733643044214,-150.0,0.00022947,2]
[344630846,1733643044223,-150.0,0.00022951,2]
[344630847,1733643044233,-300.0,0.00022951,2]
[344630848,1733643044242,-150.0,0.00022956,2]
[344630849,1733643044251,-150.0,0.00022957,2]
[344630850,1733643044262,-150.0,0.00022959,2]
[344630851,1733643044271,-150.0,0.0002296,2]
[344630852,1733643044281,-150.0,0.00022961,2]
[344630853,1733643044290,-150.0,0.00022963,2]
[344630854,1733643044299,-150.0,0.00022969,2]
[344630855,1733643044308,-150.0,0.00022972,2]
[344630856,1733643044318,-150.0,0.00022972,2]
[344630857,1733643044327,-500.0,0.00022973,2]
[344630858,1733643044337,-150.0,0.00022976,2]
[344630859,1733643044346,-150.0,0.00022979,2]
[344630860,1733643044356,-2271.32891,0.00022993,2]
[344630861,1733643044365,-8512.027058,0.00022993,2]
[344630862,1733643044375,-500.0,0.00022999,2]
[344630863,1733643044383,-500.0,0.00022999,2]
[344630864,1733643044392,-500.0,0.00022999,2]
[344630865,1733643044401,-500.0,0.00022999,2]
[344630866,1733643044411,-500.0,0.00022999,2]
[344630867,1733643044421,-500.0,0.00022999,2]
[344630868,1733643044430,-500.0,0.00022999,2]
[344630869,1733643044439,-500.0,0.00022999,2]
[344630870,1733643044448,-500.0,0.00022999,2]
[344630871,1733643044457,-297.79245224,0.00022999,2]
[344630872,1733643044468,-577.14,0.00022999,2]
[344630874,1733643044479,-577.14,0.00022999,2]
[344630875,1733643044489,-577.14,0.00022999,2]
[344630876,1733643044499,-577.14,0.00022999,2]
[344630877,1733643044508,-577.14,0.00022999,2]
[344630878,1733643044518,-577.14,0.00022999,2]
[344630879,1733643044527,-577.14,0.00022999,2]
[344630880,1733643044537,-577.14,0.00022999,2]
[344630881,1733643044546,-577.14,0.00022999,2]
[344630882,1733643044556,-3026.04248069,0.00022999,2]
[344630883,1733643044567,-500.0,0.00022999,2]
[344630884,1733643044576,-500.0,0.00022999,2]
[344630885,1733643044585,-500.0,0.00022999,2]
[344630886,1733643044595,-500.0,0.00022999,2]
[344630887,1733643044604,-500.0,0.00022999,2]
[344630888,1733643044615,-322.4914326,0.00022999,2]
[344630889,1733643044624,-5518.43890241,0.00023,3]
[344630890,1733643044635,-2026.57863952,0.00023,2]
[344630891,1733643044645,-45027.33823593,0.00023,3]
[344630892,1733643044665,-2372.2958949,0.00023,3]
[344630907,1733643045686,-15743.14776936,0.00023,3]
[344630909,1733643045698,-2539.1171874,0.00023,3]
[344630911,1733643045709,-4124.66228177,0.00023,3]
[344630914,1733643045727,-250.95369926,0.00023,3]
[344630924,1733643045959,-45527.94014633,0.00023,3]
[344630925,1733643045968,-15815.07135367,0.00023,3]
[344630926,1733643045979,-4619.00620459,0.00023,3]
[344630927,1733643045990,-270.7542876,0.00023,3]
[344631072,1733644231868,-347.30233664,0.00017096,2]
[344631073,1733644231878,-1056.0,0.00017995,2]
[344631074,1733644231892,-1056.0,0.00018943,2]
[344631075,1733644231901,-161.00499016,0.0001989,2]
[344631076,1733644231913,-894.99500984,0.0001989,2]
[344631077,1733644231922,-635.00499016,0.00019926,2]
[344631078,1733644232143,-1013.21500984,0.00019926,2]
[344631079,1733644232152,-936.78499016,0.00020884,2]
[344631080,1733644232163,-119.21500984,0.00020884,2]
[344631081,1733644232173,-169.5,0.00021558,2]
[344631082,1733644232182,-282.6,0.00021586,2]
[344631083,1733644232191,-300.0,0.00021601,2]
[344631084,1733644232201,-510.78499016,0.00021602,2]
[344631096,1733644237897,-11058.59500984,0.00021602,2]
[344631097,1733644237907,-250.0,0.00021616,2]
[344631098,1733644237916,-331.87,0.00021622,2]
[344631099,1733644237926,-157.626,0.0002185,2]
[344631100,1733644237935,-250.0,0.00021887,2]
[344631101,1733644237944,-1056.0,0.00021928,2]
[344631102,1733644237954,-324.51,0.00021947,2]
[344631103,1733644237964,-1000.0,0.00021991,2]
[344631104,1733644237973,-1000.0,0.00022061,2]
[344631105,1733644237983,-1000.0,0.00022061,2]
[344631106,1733644237993,-480.13,0.00022181,30]
[344631107,1733644238003,-1648.22,0.0002219,2]
[344631108,1733644238012,-331.87,0.00022422,2]
[344631109,1733644238021,-150.0,0.00022753,2]
[344631110,1733644238031,-150.0,0.00022783,2]
[344631111,1733644238041,-1257.37899016,0.000228,2]
[344631112,1733644238055,-716.19999999,0.000228,2]
[344631120,1733644239982,-286.38300009,0.000228,2]
[344631121,1733644240084,-2179.55709766,0.000228,2]
[344631122,1733644240094,-342.69769805,0.00022816,2]
[344631123,1733644243332,-157.30230195,0.00022816,2]
[344631124,1733644243343,-150.0,0.00022868,2]
[344631125,1733644243353,-150.0,0.0002289,2]
[344631126,1733644243364,-162.77169805,0.00022891,2]
[344631127,1733644243376,-837.22830195,0.00022891,2]
[344631128,1733644243386,-7243.03248805,0.000229,2]
[344631148,1733644245869,-1875.53201478,0.000229,2]
[344631150,1733644245880,-1512.21096518,0.000229,2]
[344631157,1733644245935,-2801.07059239,0.000229,2]
[344631159,1733644245946,-11568.1539396,0.000229,2]
[344631161,1733644245955,-458.06865923,0.000229,2]
[344631162,1733644245964,-1247.60919792,0.000229,2]
[344631163,1733644245973,-5000.0,0.000229,2]
[344631164,1733644245982,-1441.121,0.00022921,2]
[344631166,1733644245991,-150.0,0.00022936,2]
[344631168,1733644246000,-150.0,0.00022954,2]
[344631170,1733644246009,-10319.8135187,0.00022993,2]
[344631172,1733644246018,-2753.7143187,0.00022993,2]
[344631174,1733644246028,-2000.0,0.00022999,2]
[344631176,1733644246036,-500.0,0.00022999,2]
[344631178,1733644246045,-500.0,0.00022999,2]
[344631180,1733644246055,-500.0,0.00022999,2]
[344631182,1733644246064,-500.0,0.00022999,2]
[344631184,1733644246072,-500.0,0.00022999,2]
[344631185,1733644246082,-500.0,0.00022999,2]
[344631187,1733644246091,-500.0,0.00022999,2]
[344631188,1733644246100,-500.0,0.00022999,2]
[344631190,1733644246109,-500.0,0.00022999,2]
[344631192,1733644246119,-500.0,0.00022999,2]
[344631194,1733644246128,-565.09,0.00022999,2]
[344631196,1733644246138,-515.65684292,0.00022999,2]
[344631198,1733644246149,-511.72057293,0.00022999,2]
[344631200,1733644246158,-500.0,0.00022999,2]
[344631201,1733644246167,-234.30778365,0.00022999,2]
[344631202,1733644246177,-500.0,0.00022999,2]
[344631203,1733644246186,-500.0,0.00022999,2]
[344631204,1733644246195,-500.0,0.00022999,2]
[344631205,1733644246206,-500.0,0.00022999,2]
[344631206,1733644246216,-500.0,0.00022999,2]
[344631207,1733644246225,-500.0,0.00022999,2]
[344631208,1733644246235,-500.0,0.00022999,2]
[344631209,1733644246245,-500.0,0.00022999,2]
[344631210,1733644246254,-500.0,0.00022999,2]
[344631211,1733644246263,-500.0,0.00022999,2]
[344631212,1733644246271,-500.0,0.00022999,2]
[344631213,1733644246280,-500.0,0.00022999,2]
[344631214,1733644246289,-500.0,0.00022999,2]
[344631215,1733644246298,-500.0,0.00022999,2]
[344631216,1733644246308,-500.0,0.00022999,2]
[344631217,1733644246317,-500.0,0.00022999,2]
[344631218,1733644246327,-500.0,0.00022999,2]
[344631219,1733644246337,-157.17523848,0.00022999,2]
[344631220,1733644246346,-36.61522861,0.00023,2]
[344631221,1733644246358,-292.29160126,0.00023,2]
[344631222,1733644246374,-1191.02714977,0.00023,2]
[344631223,1733644246382,-201.55785023,0.00023,3]
[344631224,1733644246393,-1957.704,0.00023,3]
[344631240,1733644832729,200.0,0.00014977,2]
[344631241,1733644833015,200.0,0.00014993,2]
[344631242,1733644833321,200.0,0.00014957,2]
[344631243,1733644833722,200.0,0.00014962,2]
[344631244,1733644833986,200.0,0.00014965,2]
[344631245,1733644834265,200.0,0.00014956,2]
[344631246,1733644864358,660.23941769,0.00014994,2]
[344631247,1733644864672,660.23941769,0.00014994,2]
[344631248,1733644865006,660.23941769,0.00014996,2]
[344631249,1733644865315,660.23941769,0.0001496,2]
[344631250,1733644865645,660.23941769,0.00014976,2]
[344631251,1733644865957,660.23941769,0.00014981,2]
[344631252,1733644872629,1230.09021309,0.00014997,2]
[344631253,1733644872911,503.90125529,0.00014974,2]
[344631254,1733644872940,726.1889578,0.00014974,2]
[344631255,1733644873182,1230.09021309,0.00014989,2]
[344631256,1733644873452,1230.09021309,0.0001499,2]
[344631257,1733644873728,1230.09021309,0.00014976,2]
[344631258,1733644874009,1230.09021309,0.00014999,2]
[344631259,1733644882035,682.06729548,0.00014979,2]
[344631260,1733644882705,682.06729548,0.00014994,2]
[344631261,1733644882796,682.06729548,0.00014958,2]
[344631262,1733644883090,682.06729548,0.0001498,2]
[344631263,1733644883347,682.06729548,0.00014963,2]
[344631264,1733644883653,682.06729548,0.00014981,2]
[344631265,1733644890335,861.48094343,0.00014981,2]
[344631266,1733644890609,861.48094343,0.00014961,2]
[344631267,1733644890893,861.48094343,0.00014994,2]
[344631268,1733644891194,861.48094343,0.00014967,2]
[344631269,1733644891487,861.48094343,0.0001499,2]
[344631270,1733644891797,861.48094343,0.00014975,2]
[344631271,1733644894340,200.0,0.000149,2]
[344631272,1733644898469,200.0,0.00014971,2]
[344631273,1733644898784,200.0,0.00014963,2]
[344631274,1733644899092,200.0,0.00014963,2]
[344631275,1733644899504,200.0,0.00014966,2]
[344631276,1733644899883,200.0,0.00014965,2]
[344631277,1733644900283,200.0,0.0001496,2]
[344631278,1733644906855,464.99175471,0.00014973,2]
[344631279,1733644907149,464.99175471,0.00014967,2]
[344631280,1733644907442,464.99175471,0.00014968,2]
[344631281,1733644907729,464.99175471,0.00015,2]
[344631282,1733644908012,464.99175471,0.00014981,2]
[344631283,1733644908293,464.99175471,0.00014966,2]
[344631285,1733644923901,495.17956327,0.00014969,2]